bitfinex/quotes_SOLUSD_20220306
["timestamp","ask_amount","ask_price","bid_price","bid_amount"]
[1646540070508,23.0834,87.546,87.473,113.1]
[1646540070704,23.0834,87.546,87.476,56.86]
[1646540070907,23.0834,87.546,87.476,81.7557]
[1646540072205,23.0834,87.546,87.477,5.713]
[1646540078110,6.25220728,87.545,87.477,5.713]
[1646540078710,23.0834,87.546,87.477,5.713]
[1646540079739,113.1,87.545,87.477,5.713]
[1646540079915,113.1,87.543,87.476,24.8957]
[1646540080117,3.02751729,87.539,87.448,5.713]
[1646540080312,3.02751729,87.536,87.449,24.2352]
[1646540080517,113.1,87.534,87.449,24.2352]
[1646540080715,113.1,87.534,87.431,5.714]
[1646540080716,113.1,87.532,87.431,5.714]
[1646540080917,3.02751729,87.52,87.431,5.714]
[1646540081115,113.1,87.518,87.432,59.79986903]
[1646540081316,113.1,87.516,87.432,59.79986903]
[1646540081516,113.1,87.514,87.432,59.79986903]
[1646540081715,113.1,87.512,87.414,24.2352]
[1646540081916,113.1,87.499,87.41,5.716]
[1646540082116,113.1,87.497,87.391,5.716]
[1646540082321,113.1,87.495,87.391,5.716]
[1646540082516,113.1,87.493,87.391,5.716]
[1646540082718,113.1,87.489,87.392,56.11211001]
[1646540083019,113.1,87.487,87.392,56.11211001]
[1646540083218,113.1,87.485,87.392,56.11211001]
[1646540083418,113.1,87.483,87.392,56.11211001]
[1646540083618,113.1,87.481,87.392,56.11211001]
[1646540084219,1.99332793,87.48,87.392,56.11211001]
[1646540084620,115.09332793,87.48,87.392,56.11211001]
[1646540085021,1.99332793,87.479,87.392,56.11211001]
[1646540085423,113.1,87.477,87.392,56.11211001]
[1646540085723,113.1,87.475,87.392,56.11211001]
[1646540085922,113.1,87.473,87.392,56.11211001]
[1646540086122,113.1,87.471,87.392,56.11211001]
[1646540086322,113.1,87.469,87.37,24.0948]
[1646540086522,113.1,87.459,87.33,17.1735]
[1646540086722,113.1,87.457,87.344,47.5272]
[1646540086923,113.1,87.455,87.344,47.5272]
[1646540087122,68.67,87.452,87.344,47.5272]
[1646540087345,113.1,87.441,87.345,47.52391764]
[1646540087545,68.67,87.436,87.345,47.52391764]
[1646540087744,113.1,87.427,87.31,42.48556486]
[1646540087945,181.77,87.419,87.31,25.96556486]
[1646540088143,181.77,87.419,87.3,16.52]
[1646540088144,113.1,87.417,87.305,24.8041166]
[1646540088553,113.1,87.415,87.305,24.8041166]
[1646540088745,113.1,87.413,87.306,60.94236466]
[1646540088944,113.1,87.409,87.306,60.94236466]
[1646540089143,113.1,87.407,87.306,60.94236466]
[1646540089343,113.1,87.405,87.306,60.94236466]
[1646540089845,1.99341632,87.404,87.306,60.94236466]
[1646540090446,1.99341632,87.404,87.307,24.8041166]
[1646540091448,181.77,87.399,87.306,60.94236466]
[1646540091646,113.1,87.397,87.306,60.94236466]
[1646540091845,113.1,87.395,87.306,60.94236466]
[1646540092046,16.52,87.39,87.306,60.94236466]
[1646540092246,118.824,87.389,87.306,60.94236466]
[1646540092447,134.96847113,87.389,87.306,60.94236466]
[1646540092646,1.99341632,87.388,87.306,60.94236466]
[1646540092946,118.824,87.387,87.306,60.94236466]
[1646540093345,1.99341632,87.386,87.306,60.94236466]
[1646540093548,113.1,87.384,87.27,16.52]
[1646540093746,113.1,87.379,87.261,105.7246]
[1646540093947,113.1,87.377,87.261,105.7246]
[1646540094147,5.726,87.378,87.261,48.8646]
[1646540094148,68.67,87.369,87.261,48.8646]
[1646540094346,113.1,87.367,87.261,48.8646]
[1646540094548,113.1,87.365,87.262,64.48008096]
[1646540094748,118.826,87.364,87.262,64.48008096]
[1646540095149,120.81941632,87.364,87.262,64.48008096]
[1646540095346,1.99341632,87.363,87.262,64.48008096]
[1646540095547,5.726,87.362,87.262,64.48008096]
[1646540095847,1.99341632,87.361,87.262,64.48008096]
[1646540096051,5.726,87.36,87.263,2.83613526]
[1646540096248,24.8179,87.368,87.263,24.33825186]
[1646540096449,24.8179,87.368,87.264,21.5021166]
[1646540096649,24.8179,87.368,87.27,17.1857]
[1646540096849,24.8179,87.368,87.28,16.52]
[1646540097550,24.8179,87.368,87.281,2.83613526]
[1646540097749,24.8179,87.368,87.29,17.1824]
[1646540097950,24.8179,87.368,87.291,46.65867432]
[1646540098950,24.8179,87.368,87.292,2.83613526]
[1646540099151,5.724,87.367,87.291,46.65867432]
[1646540099551,24.8179,87.368,87.3,17.18]
[1646540100554,1.99341632,87.386,87.3,17.18]
[1646540100753,46.0494,87.399,87.33,17.1743]
[1646540100952,46.0494,87.399,87.331,49.65143779]
[1646540101553,1.99341632,87.41,87.331,49.65143779]
[1646540101956,46.0494,87.428,87.331,49.65143779]
[1646540102154,46.0494,87.428,87.333,0.51119505]
[1646540102554,46.0494,87.428,87.335,0.57625689]
[1646540102755,1.99341632,87.452,87.335,0.57625689]
[1646540102954,46.8547,87.451,87.34,17.1721]
[1646540103154,46.8547,87.451,87.35,16.52]
[1646540103454,7.71341632,87.45,87.351,24.5935]
[1646540103856,24.24888736,87.449,87.351,24.5935]
[1646540104055,113.1,87.448,87.351,24.5935]
[1646540104256,113.1,87.446,87.351,24.5935]
[1646540104455,113.1,87.444,87.351,24.5935]
[1646540104655,113.1,87.442,87.351,24.5935]
[1646540104855,5.721,87.441,87.351,24.5935]
[1646540105055,30.52852108,87.441,87.351,24.5935]
[1646540105256,38.22660884,87.44,87.351,24.5935]
[1646540105456,5.721,87.439,87.351,24.5935]
[1646540105656,43.94760884,87.439,87.351,24.5935]
[1646540105859,151.32660884,87.438,87.351,24.5935]
[1646540106058,113.1,87.436,87.351,24.5935]
[1646540106258,113.1,87.434,87.351,24.5935]
[1646540106561,113.1,87.432,87.315,56.86]
[1646540106757,113.1,87.43,87.324,24.28]
[1646540106958,113.1,87.428,87.324,24.28]
[1646540107160,113.1,87.426,87.324,24.28]
[1646540107359,113.1,87.424,87.324,24.28]
[1646540107558,113.1,87.422,87.324,24.28]
[1646540107759,113.1,87.42,87.324,24.28]
[1646540108058,113.1,87.418,87.324,24.28]
[1646540108358,113.1,87.416,87.324,24.28]
[1646540108558,113.1,87.414,87.324,24.28]
[1646540108959,1.99341632,87.413,87.324,24.28]
[1646540109163,113.1,87.411,87.324,24.28]
[1646540109362,5.722,87.41,87.324,24.28]
[1646540110162,5.722,87.41,87.33,17.174]
[1646540110364,113.1,87.411,87.33,17.174]
[1646540110564,5.722,87.41,87.33,17.174]
[1646540111563,113.1,87.411,87.33,17.174]
[1646540111768,5.722,87.41,87.33,17.174]
[1646540112366,113.1,87.411,87.33,17.174]
[1646540112865,5.722,87.412,87.33,17.174]
[1646540113065,5.722,87.412,87.34,17.1722]
[1646540113267,23.0794,87.422,87.35,16.52]
[1646540113466,1.9935136,87.437,87.351,113.1]
[1646540113767,112.1,87.46,87.351,113.1]
[1646540113768,48.5909136,87.457,87.355,0.50634647]
[1646540113969,46.5974,87.457,87.37,16.52]
[1646540114166,46.5974,87.457,87.39,17.162]
[1646540114369,112.1,87.46,87.39,17.162]
[1646540116971,5.719,87.469,87.39,17.162]
[1646540117368,5.718,87.474,87.39,17.162]
[1646540117568,5.718,87.477,87.39,17.162]
[1646540120571,22.25547104,87.476,87.39,17.162]
[1646540120991,22.25547104,87.476,87.39,33.682]
[1646540122374,5.718,87.475,87.39,33.682]
[1646540125477,22.25547104,87.476,87.39,33.682]
[1646540126880,5.718,87.482,87.39,33.682]
[1646540129402,5.718,87.486,87.39,33.682]
[1646540130908,5.718,87.486,87.391,113.1]
[1646540131112,128.0711378,87.496,87.41,17.1555]
[1646540131305,112.1,87.496,87.412,59.48824056]
[1646540131707,112.1,87.496,87.413,56.86]
[1646540131910,112.1,87.496,87.414,0.97237371]
[1646540132514,112.1,87.496,87.413,56.86]
[1646540132515,112.1,87.496,87.421,0.97237371]
[1646540132712,112.1,87.496,87.43,16.52]
[1646540132906,112.1,87.496,87.431,0.94408116]
[1646540134208,112.1,87.496,87.441,49.35395854]
[1646540136010,112.1,87.496,87.441,48.40987738]
[1646540136410,112.1,87.496,87.442,0.4595153]
[1646540136611,112.1,87.496,87.441,48.40987738]
[1646540137013,112.1,87.496,87.442,0.46076654]
[1646540138014,2.00062474,87.495,87.4,17.1599]
[1646540138213,24.1745,87.494,87.4,33.6799]
[1646540138414,24.1745,87.494,87.41,16.52]
[1646540138614,2.00062474,87.493,87.41,16.52]
[1646540138815,2.00062474,87.493,87.415,60.64360498]
[1646540139013,2.00062474,87.493,87.4,17.1599]
[1646540139014,113.1,87.491,87.4,16.52]
[1646540139213,113.1,87.489,87.39,16.52]
[1646540139415,113.1,87.489,87.38,33.5723]
[1646540139615,5.716,87.488,87.38,33.5723]
[1646540139814,43.94260884,87.488,87.39,16.52]
[1646540140117,15.9711378,87.487,87.412,57.16170715]
[1646540140316,5.716,87.486,87.412,57.16170715]
[1646540140514,7.71662474,87.486,87.412,57.16170715]
[1646540140814,2.00062474,87.485,87.412,57.16170715]
[1646540141014,5.716,87.484,87.412,57.16170715]
[1646540141415,2.00062474,87.483,87.412,57.16170715]
[1646540141614,5.716,87.482,87.412,57.16170715]
[1646540142214,2.00062474,87.483,87.412,57.16170715]
[1646540144824,5.716,87.482,87.412,57.16170715]
[1646540145819,118.816,87.482,87.4,17.16]
[1646540146020,40.22723358,87.481,87.384,22.6834]
[1646540146219,1.50149784,87.465,87.384,22.6834]
[1646540146421,135.338,87.48,87.384,22.6834]
[1646540146422,113.1,87.463,87.384,22.6834]
[1646540146620,144.1855,87.463,87.384,22.6834]
[1646540146820,5.719,87.462,87.385,62.11947464]
[1646540147023,22.8955,87.463,87.385,62.11947464]
[1646540147245,2.00062474,87.462,87.385,62.11947464]
[1646540147425,2.00062474,87.461,87.385,62.11947464]
[1646540147722,17.97176254,87.461,87.385,62.11947464]
[1646540147921,5.719,87.46,87.385,62.11947464]
[1646540148125,113.1,87.459,87.35,16.52]
[1646540148323,1.50149784,87.448,87.351,23.9741]
[1646540148721,5.72,87.447,87.351,23.9741]
[1646540148922,17.97176254,87.447,87.351,23.9741]
[1646540149125,15.9711378,87.446,87.352,61.83319322]
[1646540149323,17.96666438,87.446,87.352,61.83319322]
[1646540149524,1.99552658,87.445,87.352,61.83319322]
[1646540149724,17.95799771,87.445,87.352,61.83319322]
[1646540149928,113.1,87.443,87.352,61.83319322]
[1646540150125,113.1,87.441,87.352,61.83319322]
[1646540150327,5.721,87.44,87.352,61.83319322]
[1646540150528,21.68347113,87.441,87.352,61.83319322]
[1646540150729,1.99552658,87.44,87.352,61.83319322]
[1646540150926,5.721,87.439,87.352,61.83319322]
[1646540151326,1.99552658,87.438,87.352,61.83319322]
[1646540151528,5.721,87.437,87.352,61.83319322]
[1646540151727,24.744,87.436,87.352,61.83319322]
[1646540151930,5.721,87.435,87.352,61.83319322]
[1646540152228,7.71652658,87.435,87.352,61.83319322]
[1646540152427,1.99552658,87.434,87.352,61.83319322]
[1646540152628,5.721,87.433,87.352,61.83319322]
[1646540155630,113.1,87.432,87.352,61.83319322]
[1646540155832,5.721,87.431,87.352,61.83319322]
[1646540156631,5.721,87.433,87.352,61.83319322]
[1646540156830,1.99552658,87.434,87.352,61.83319322]
[1646540159632,113.1,87.432,87.352,61.83319322]
[1646540159834,5.721,87.431,87.352,61.83319322]
[1646540160636,1.99552658,87.434,87.352,61.83319322]
[1646540160637,5.721,87.433,87.352,61.83319322]
[1646540161439,1.99552658,87.434,87.352,61.83319322]
[1646540163759,5.721,87.433,87.352,61.83319322]
[1646540164561,115.09552658,87.432,87.352,61.83319322]
[1646540164762,5.721,87.431,87.352,61.83319322]
[1646540164960,7.71652658,87.431,87.352,61.83319322]
[1646540165162,1.99552658,87.43,87.352,61.83319322]
[1646540165363,5.721,87.429,87.352,61.83319322]
[1646540165565,113.1,87.428,87.352,61.83319322]
[1646540165865,5.721,87.427,87.352,61.83319322]
[1646540166064,7.71652658,87.427,87.352,61.83319322]
[1646540166464,1.99552658,87.426,87.352,61.83319322]
[1646540166665,30.3109,87.425,87.352,61.83319322]
[1646540167065,1.99552658,87.424,87.352,61.83319322]
[1646540167264,5.721,87.423,87.352,61.83319322]
[1646540167664,1.99552658,87.422,87.352,61.83319322]
[1646540167864,5.721,87.421,87.352,61.83319322]
[1646540168265,1.99552658,87.42,87.352,61.83319322]
[1646540170071,5.721,87.419,87.352,61.83319322]
[1646540170471,1.99552658,87.418,87.352,61.83319322]
[1646540170673,5.721,87.417,87.352,61.83319322]
[1646540170871,24.5899,87.425,87.352,61.83319322]
[1646540171574,113.1,87.424,87.352,61.83319322]
[1646540171974,24.5899,87.425,87.352,61.83319322]
[1646540173376,5.721,87.431,87.352,61.83319322]
[1646540173578,23.1854,87.437,87.36,16.52]
[1646540175178,23.1854,87.437,87.36,33.6869]
[1646540182386,1.99552658,87.458,87.361,56.86]
[1646540182586,113.60149784,87.463,87.361,56.86]
[1646540182587,23.3679,87.462,87.38,17.1632]
[1646540182786,23.3679,87.462,87.381,46.57193427]
[1646540182787,29.0869,87.462,87.381,46.57193427]
[1646540182988,29.0869,87.462,87.382,0.51909786]
[1646540183186,23.3679,87.462,87.382,0.51909786]
[1646540183594,23.3679,87.462,87.39,17.1611]
[1646540183787,23.3679,87.462,87.381,71.26023427]
[1646540183988,5.719,87.461,87.381,71.26023427]
[1646540184989,113.1,87.46,87.381,71.26023427]
[1646540185187,113.1,87.458,87.381,24.6883]
[1646540185390,113.1,87.458,87.34,16.52]
[1646540185391,113.1,87.456,87.34,16.52]
[1646540185591,114.60149784,87.448,87.341,24.3834]
[1646540185789,181.77,87.439,87.341,24.3834]
[1646540185987,113.1,87.428,87.341,24.3834]
[1646540186187,68.67,87.425,87.342,50.76331247]
[1646540186392,68.67,87.417,87.3,16.52]
[1646540186593,113.1,87.408,87.3,16.52]
[1646540186789,113.1,87.406,87.3,16.52]
[1646540186989,113.1,87.404,87.3,16.52]
[1646540187189,113.1,87.402,87.301,26.22795026]
[1646540187388,113.1,87.4,87.301,87.68949203]
[1646540187589,113.1,87.398,87.301,87.68949203]
[1646540187791,113.1,87.396,87.302,26.22795026]
[1646540187990,113.1,87.394,87.302,47.73006686]
[1646540188189,113.1,87.394,87.302,26.22795026]
[1646540188392,5.724,87.393,87.303,21.5021166]
[1646540188589,5.724,87.393,87.303,47.73006686]
[1646540189390,5.724,87.393,87.304,47.73006686]
[1646540189593,5.724,87.402,87.31,17.178]
[1646540189790,5.724,87.402,87.311,23.9125]
[1646540189990,46.9515,87.407,87.311,50.14045026]
[1646540190190,46.9515,87.407,87.312,2.83613526]
[1646540190390,46.9515,87.407,87.313,113.1]
[1646540190692,46.9515,87.407,87.317,169.96]
[1646540190891,46.9515,87.407,87.33,16.52]
[1646540191192,46.9515,87.407,87.331,47.5020367]
[1646540191991,113.1,87.406,87.331,47.5020367]
[1646540192391,113.1,87.404,87.331,47.5020367]
[1646540192591,5.722,87.403,87.331,47.5020367]
[1646540193392,113.1,87.405,87.331,47.5020367]
[1646540193591,6.68,87.406,87.331,47.5020367]
[1646540193592,181.77,87.399,87.331,47.5020367]
[1646540193794,113.1,87.397,87.331,47.5020367]
[1646540194093,65.22310685,87.398,87.331,47.5020367]
[1646540194297,17.72050013,87.398,87.331,47.5020367]
[1646540194494,1.50149784,87.43,87.331,55.1620367]
[1646540194694,22.69508564,87.433,87.34,17.1711]
[1646540194895,1.99546295,87.431,87.333,24.4082]
[1646540195094,22.69508564,87.429,87.333,24.4082]
[1646540195294,5.722,87.428,87.333,24.4082]
[1646540195495,22.69508564,87.429,87.333,24.4082]
[1646540195800,22.69508564,87.428,87.333,24.4082]
[1646540196012,47.50260672,87.428,87.334,23.1632]
[1646540196214,22.69508564,87.428,87.334,23.1632]
[1646540196412,24.80752108,87.427,87.334,23.1632]
[1646540196816,22.69508564,87.426,87.334,23.1632]
[1646540197213,29.263,87.425,87.334,23.1632]
[1646540197415,25.53646295,87.425,87.334,23.1632]
[1646540197814,113.1,87.424,87.334,23.1632]
[1646540198014,137.90752108,87.424,87.334,23.1632]
[1646540198214,22.69508564,87.423,87.334,23.1632]
[1646540198514,47.50260672,87.423,87.334,23.1632]
[1646540198716,5.722,87.422,87.334,23.1632]
[1646540198915,28.41708564,87.422,87.334,23.1632]
[1646540199116,46.52188564,87.421,87.334,23.1632]
[1646540199316,5.722,87.42,87.334,23.1632]
[1646540199514,46.52188564,87.421,87.334,23.1632]
[1646540199917,135.79508564,87.42,87.334,23.1632]
[1646540201218,22.69508564,87.419,87.334,23.1632]
[1646540203418,113.1,87.418,87.334,23.1632]
[1646540203822,113.1,87.416,87.334,23.1632]
[1646540204022,113.1,87.414,87.334,23.1632]
[1646540204223,113.1,87.412,87.334,23.1632]
[1646540204821,113.1,87.41,87.334,23.1632]
[1646540205022,113.1,87.408,87.334,23.1632]
[1646540205223,113.1,87.406,87.334,23.1632]
[1646540205423,113.1,87.404,87.334,23.1632]
[1646540205823,113.1,87.404,87.333,24.4082]
[1646540206029,68.67,87.399,87.31,22.7715]
[1646540206228,68.67,87.393,87.28,16.52]
[1646540206432,113.1,87.388,87.294,24.3839]
[1646540206726,113.1,87.386,87.294,24.3839]
[1646540206930,113.1,87.384,87.294,24.3839]
[1646540207225,113.1,87.382,87.295,47.91683177]
[1646540207429,181.77,87.38,87.295,47.91683177]
[1646540207628,5.724,87.381,87.295,47.91683177]
[1646540207629,113.1,87.368,87.295,47.91683177]
[1646540207829,113.1,87.366,87.295,47.91683177]
[1646540208231,113.1,87.364,87.295,47.91683177]
[1646540208435,113.1,87.362,87.295,47.91683177]
[1646540208634,113.1,87.36,87.295,47.91683177]
[1646540208831,113.1,87.358,87.295,47.91683177]
[1646540209031,113.1,87.356,87.295,47.91683177]
[1646540209233,113.1,87.354,87.295,47.91683177]
[1646540209434,5.724,87.353,87.295,47.91683177]
[1646540210132,113.1,87.352,87.295,47.91683177]
[1646540211632,113.1,87.363,87.295,47.91683177]
[1646540211834,5.724,87.362,87.295,47.91683177]
[1646540212036,22.6219,87.368,87.295,47.91683177]
[1646540212233,5.724,87.367,87.295,47.91683177]
[1646540213835,113.1,87.366,87.295,47.91683177]
[1646540214035,113.1,87.364,87.295,47.91683177]
[1646540214639,113.1,87.362,87.295,47.91683177]
[1646540214839,5.724,87.361,87.295,47.91683177]
[1646540215438,113.1,87.365,87.295,47.91683177]
[1646540217042,113.1,87.361,87.276,22.7845]
[1646540217245,181.77,87.359,87.276,22.7845]
[1646540217441,113.1,87.357,87.276,22.7845]
[1646540217842,113.1,87.355,87.276,22.7845]
[1646540218141,113.1,87.353,87.277,51.77296581]
[1646540218342,113.1,87.351,87.277,51.77296581]
[1646540218642,5.726,87.35,87.277,51.77296581]
[1646540219043,5.726,87.355,87.277,51.77296581]
[1646540219245,113.1,87.355,87.277,51.77296581]
[1646540219848,113.1,87.353,87.277,51.77296581]
[1646540220145,113.1,87.351,87.277,51.77296581]
[1646540220345,113.1,87.349,87.277,51.77296581]
[1646540220546,113.1,87.347,87.277,51.77296581]
[1646540221746,113.1,87.346,87.277,51.77296581]
[1646540222747,113.1,87.355,87.277,51.77296581]
[1646540223647,113.1,87.353,87.277,51.77296581]
[1646540223848,113.1,87.351,87.277,51.77296581]
[1646540224050,181.77,87.349,87.277,51.77296581]
[1646540224248,5.726,87.35,87.242,73.8169]
[1646540224249,181.77,87.347,87.242,73.8169]
[1646540224446,189.67,87.347,87.243,47.4281]
[1646540224647,181.77,87.345,87.243,47.4281]
[1646540224855,181.77,87.339,87.243,47.4281]
[1646540225050,113.1,87.319,87.243,47.4281]
[1646540225249,113.1,87.317,87.244,61.80009345]
[1646540225449,113.1,87.315,87.244,61.80009345]
[1646540225651,113.1,87.313,87.244,61.80009345]
[1646540225849,113.1,87.311,87.244,61.80009345]
[1646540226453,5.728,87.313,87.244,61.80009345]
[1646540226854,113.1,87.312,87.244,61.80009345]
[1646540227454,113.1,87.309,87.244,61.80009345]
[1646540227657,113.1,87.307,87.244,61.80009345]
[1646540227856,113.1,87.305,87.244,61.80009345]
[1646540228055,113.1,87.303,87.244,61.80009345]
[1646540228255,113.1,87.301,87.244,61.80009345]
[1646540228457,181.77,87.299,87.244,61.80009345]
[1646540228657,113.1,87.299,87.212,48.1647]
[1646540228857,28.5351,87.298,87.212,48.1647]
[1646540229057,22.8051,87.298,87.212,51.00083526]
[1646540229256,113.1,87.297,87.212,51.00083526]
[1646540229658,113.1,87.297,87.213,62.2624232]
[1646540229877,22.8051,87.298,87.213,62.2624232]
[1646540230083,5.73,87.315,87.22,17.1955]
[1646540230280,34.0887,87.35,87.22,17.1955]
[1646540230281,29.1058,87.326,87.22,33.7155]
[1646540230481,29.1058,87.326,87.221,2.83613526]
[1646540230679,29.1058,87.326,87.221,26.63741885]
[1646540230981,113.1,87.325,87.221,26.63741885]
[1646540231184,113.1,87.325,87.241,46.91733172]
[1646540231380,113.1,87.325,87.242,22.2032]
[1646540231588,5.728,87.324,87.242,22.2032]
[1646540231881,5.728,87.325,87.242,22.2032]
[1646540232081,118.828,87.325,87.242,22.2032]
[1646540233084,113.1,87.323,87.242,22.2032]
[1646540233284,5.728,87.322,87.242,22.2032]
[1646540234185,113.1,87.321,87.242,22.2032]
[1646540234488,5.728,87.32,87.242,22.2032]
[1646540234685,5.728,87.323,87.242,22.2032]
[1646540235685,22.69508564,87.324,87.242,22.2032]
[1646540237788,22.19508564,87.324,87.242,22.2032]
[1646540238590,23.3768,87.326,87.242,22.2032]
[1646540240391,23.3768,87.326,87.25,17.1891]
[1646540240592,23.3768,87.326,87.25,33.7091]
[1646540240792,5.728,87.344,87.25,33.7091]
[1646540240990,22.26548764,87.353,87.251,2.83613526]
[1646540241191,53.3406,87.359,87.251,2.83613526]
[1646540241390,53.3406,87.359,87.252,0.46947592]
[1646540241590,53.3406,87.359,87.251,2.83613526]
[1646540241789,53.3406,87.359,87.253,2.83613526]
[1646540242191,53.3406,87.359,87.27,17.1842]
[1646540242392,53.3406,87.359,87.271,70.4354285]
[1646540242593,29.2889,87.359,87.271,70.4354285]
[1646540242792,23.5619,87.359,87.271,70.4354285]
[1646540242991,23.5619,87.359,87.272,2.83613526]
[1646540244091,23.5619,87.359,87.28,17.1835]
[1646540245994,5.726,87.358,87.28,17.1835]
[1646540246395,5.726,87.358,87.28,33.7035]
[1646540246594,23.3952,87.368,87.281,2.83613526]
[1646540246794,5.724,87.385,87.3,17.1793]
[1646540246994,5.724,87.386,87.301,58.12387923]
[1646540247194,24.6717,87.387,87.301,58.12387923]
[1646540247794,5.724,87.386,87.302,0.69824176]
[1646540247994,24.6717,87.387,87.302,0.69824176]
[1646540248201,24.6717,87.387,87.302,8.82824176]
[1646540248398,117.824,87.402,87.31,17.1776]
[1646540248596,112.1,87.402,87.311,23.4269]
[1646540248796,112.1,87.402,87.312,0.69824176]
[1646540249299,5.723,87.413,87.313,2.83613526]
[1646540249497,5.723,87.413,87.321,0.69824176]
[1646540249697,5.723,87.413,87.33,16.52]
[1646540249897,5.723,87.413,87.331,65.32781792]
[1646540250296,5.723,87.413,87.331,64.62957616]
[1646540250696,5.723,87.413,87.332,0.69824176]
[1646540251597,5.723,87.413,87.332,7.47824176]
[1646540251797,5.722,87.438,87.334,0.69824176]
[1646540251997,5.721,87.441,87.334,0.69824176]
[1646540252197,24.25583315,87.437,87.334,0.69824176]
[1646540252399,113.1,87.435,87.331,64.62957616]
[1646540252599,113.1,87.433,87.331,64.62957616]
[1646540253100,53.27132872,87.432,87.331,64.62957616]
[1646540253299,113.1,87.431,87.331,64.62957616]
[1646540253602,17.1768,87.43,87.331,64.62957616]
[1646540253801,80.21356441,87.43,87.331,64.62957616]
[1646540253999,22.26548764,87.429,87.331,64.62957616]
[1646540254199,49.53967423,87.429,87.331,64.62957616]
[1646540254401,1.99725181,87.428,87.331,64.62957616]
[1646540254602,24.26273945,87.428,87.331,64.62957616]
[1646540254801,22.26548764,87.427,87.331,64.62957616]
[1646540255002,24.26273945,87.427,87.331,64.62957616]
[1646540255203,1.99725181,87.426,87.331,64.62957616]
[1646540255706,24.9516,87.425,87.331,64.62957616]
[1646540256107,24.9516,87.425,87.331,64.12957616]
[1646540256506,24.9516,87.425,87.34,17.1716]
[1646540256804,24.9516,87.425,87.34,33.6916]
[1646540257407,24.9516,87.425,87.341,2.83613526]
[1646540257606,24.9516,87.425,87.35,17.1695]
[1646540257807,24.9516,87.425,87.351,57.34567551]
[1646540260211,24.9516,87.425,87.352,22.5567]
[1646540261412,5.721,87.424,87.352,22.5567]
[1646540261812,118.821,87.424,87.352,22.5567]
[1646540262012,5.721,87.424,87.352,22.5567]
[1646540263012,118.821,87.424,87.352,22.5567]
[1646540264916,5.721,87.424,87.352,22.5567]
[1646540265117,118.821,87.424,87.352,22.5567]
[1646540265516,181.77,87.418,87.31,16.52]
[1646540265718,113.1,87.416,87.311,24.337]
[1646540265914,113.1,87.414,87.311,24.337]
[1646540266120,113.1,87.412,87.312,22.7033]
[1646540266323,113.1,87.41,87.313,51.36705849]
[1646540266521,113.1,87.408,87.313,51.36705849]
[1646540266719,29.7252,87.407,87.313,51.36705849]
[1646540266919,24.0022,87.407,87.313,51.36705849]
[1646540267122,26.00019581,87.407,87.313,51.36705849]
[1646540267323,5.723,87.406,87.313,51.36705849]
[1646540268324,7.72099581,87.406,87.313,51.36705849]
[1646540268925,1.99799581,87.406,87.313,51.36705849]
[1646540269728,24.0022,87.407,87.314,2.83613526]
[1646540271239,24.0022,87.407,87.32,17.1756]
[1646540271543,24.0022,87.407,87.32,33.6956]
[1646540275849,24.0022,87.407,87.321,5.723]
[1646540276047,24.0022,87.407,87.322,23.6869]
[1646540276247,5.723,87.406,87.322,23.6869]
[1646540277748,5.223,87.406,87.322,23.6869]
[1646540279153,115.09799581,87.405,87.322,23.6869]
[1646540279450,1.50149784,87.402,87.322,23.6869]
[1646540279650,5.723,87.401,87.322,23.6869]